bitfinex-derivatives/quotes_SOLF0:USTF0_20241227
["timestamp","ask_amount","ask_price","bid_price","bid_amount"]
[1735312694858,19.94290203,186.03,185.89,4.38]
[1735312695056,2.6917,185.97,185.89,4.38]
[1735312695559,4.38,186.09,185.89,4.38]
[1735312695560,7.24639898,186.12,185.92,19.94290203]
[1735312695763,19.94290203,186.09,185.92,19.94290203]
[1735312696065,19.94290203,186.09,185.93,1.6414]
[1735312696264,19.94290203,186.09,185.93,2.6303158]
[1735312696465,19.94290203,186.09,185.93,1.6414]
[1735312696666,2.6908,186.03,185.96,2.6918]
[1735312697362,2.6906,186.05,185.97,2.6916]
[1735312697557,19.94290203,186.06,185.97,2.6916]
[1735312697960,19.94290203,186.06,185.93,6.4014]
[1735312698363,4.76,186.08,185.93,6.4014]
[1735312698570,19.94290203,186.05,185.93,6.4014]
[1735312699771,19.94290203,186.05,185.94,2.692]
[1735312700466,2.6914,185.99,185.93,6.4014]
[1735312700667,2.6914,185.99,185.93,1.6414]
[1735312700865,19.94290203,186.02,185.9,4.76]
[1735312701663,19.94290203,186.02,185.88,3.1412]
[1735312701868,2.6917,185.97,185.9,2.6926]
[1735312702066,2.6917,185.97,185.88,7.9012]
[1735312702666,2.6915,185.99,185.88,7.9012]
[1735312703265,7.83769898,186.11,185.92,19.94290203]
[1735312703266,7.24639898,186.09,185.92,19.94290203]
[1735312703679,7.24639898,186.09,185.93,0.98913565]
[1735312704080,7.24639898,186.09,185.94,1.6911]
[1735312704276,20.53420203,186.11,185.94,1.6911]
[1735312704475,2.6901,186.08,186.0,2.6912]
[1735312704673,20.53420203,186.11,186.0,2.6912]
[1735312705273,20.53420203,186.11,185.97,3.2984]
[1735312705780,19.94290203,186.08,185.97,3.2984]
[1735312705976,2.6908,186.04,185.97,5.9899]
[1735312706171,19.94290203,186.02,185.9,29.7827899]
[1735312706474,19.94290203,186.02,185.91,5.44]
[1735312706675,2.6916,185.97,185.91,2.6925]
[1735312706876,19.94290203,186.02,185.9,33.0857899]
[1735312707078,19.94290203,186.02,185.9,3.303]
[1735312707279,2.6911,186.01,185.9,3.303]
[1735312707579,5.44,186.06,185.9,3.303]
[1735312707580,19.94290203,186.05,185.9,3.303]
[1735312708174,19.94290203,186.08,185.92,19.94290203]
[1735312709278,2.6904,186.06,185.92,19.94290203]
[1735312709873,2.6904,186.06,186.0,2.6912]
[1735312710079,2.6905,186.05,185.96,5.44]
[1735312710375,19.94290203,186.08,185.96,5.44]
[1735312710575,2.6907,186.04,185.92,19.94290203]
[1735312710782,19.94290203,186.05,185.93,5.44]
[1735312710977,19.94290203,186.05,185.9,3.303]
[1735312710978,19.94290203,186.05,185.9,8.743]
[1735312711178,2.6915,185.98,185.92,2.6923]
[1735312711476,19.94290203,186.02,185.9,3.303]
[1735312712183,2.6917,185.97,185.9,3.303]
[1735312712582,19.94290203,186.02,185.9,3.303]
[1735312712881,19.94290203,186.08,185.9,3.303]
[1735312713082,2.6907,186.04,185.96,2.6917]
[1735312713282,19.94290203,186.08,185.96,2.6917]
[1735312713481,19.94290203,186.05,185.9,3.303]
[1735312714481,19.94290203,186.08,185.9,3.303]
[1735312714680,19.94290203,186.08,185.91,0.98888857]
[1735312715183,19.94290203,186.08,185.9,3.303]
[1735312715377,0.5913,186.11,185.9,3.303]
[1735312715582,19.94290203,186.05,185.9,3.303]
[1735312715975,2.6908,186.03,185.97,2.6916]
[1735312716576,2.6906,186.05,185.91,19.94290203]
[1735312716781,2.6906,186.05,185.92,0.98886885]
[1735312717286,2.6904,186.06,185.92,0.98886885]
[1735312718180,19.94290203,186.08,185.92,0.98886885]
[1735312718486,19.94290203,186.05,185.9,3.303]
[1735312718687,19.94290203,186.05,185.93,2.6921]
[1735312718886,2.6915,185.98,185.9,3.303]
[1735312719289,19.94290203,186.02,185.9,3.303]
[1735312719588,2.6915,185.98,185.9,3.303]
[1735312720287,2.6917,185.97,185.9,5.9955]
[1735312720489,2.6917,185.97,185.9,3.303]
[1735312720986,2.692,185.95,185.89,2.6927]
[1735312721188,19.94290203,185.99,185.88,1.6924]
[1735312721389,0.1254,186.01,185.85,3.3304]
[1735312721390,19.94290203,185.96,185.85,3.3304]
[1735312721589,2.6928,185.89,185.84,29.7827899]
[1735312721991,2.6928,185.89,185.83,43.4727308]
[1735312722484,2.693,185.88,185.83,40.7790308]
[1735312722789,19.94290203,185.9,185.83,40.7790308]
[1735312722985,2.6934,185.85,185.83,40.7790308]
[1735312723191,19.94290203,185.9,185.83,33.33333333]
[1735312723580,2.693,185.88,185.83,33.33333333]
[1735312723792,19.94290203,185.9,185.83,33.33333333]
[1735312724190,2.6934,185.85,185.83,33.33333333]
[1735312724490,19.94290203,185.84,185.76,30.871442]
[1735312724692,19.94290203,185.84,185.76,23.42574453]
[1735312724882,19.94290203,185.78,185.72,33.33333333]
[1735312725088,19.94290203,185.75,185.72,33.33333333]
[1735312725287,2.695,185.74,185.72,33.33333333]
[1735312725490,19.94290203,185.75,185.69,7.44569747]
[1735312725689,19.94290203,185.72,185.69,7.44569747]
[1735312725994,19.94290203,185.72,185.67,1.88098669]
[1735312726189,19.94290203,185.72,185.45,95.45229454]
[1735312726190,39.88580406,185.68,185.55,7.4700695]
[1735312726392,19.94290203,185.56,185.55,7.4700695]
[1735312726695,19.94290203,185.58,185.55,7.4700695]
[1735312727290,2.6975,185.57,185.55,7.4700695]
[1735312727491,39.88580406,185.58,185.55,7.4700695]
[1735312727687,2.6976,185.57,185.51,89.64083407]
[1735312727898,19.94290203,185.54,185.52,2.18634791]
[1735312728086,19.94290203,185.54,185.41,33.33333333]
[1735312728292,36.46406715,185.53,185.41,33.33333333]
[1735312728591,3.76272454,185.52,185.41,33.33333333]
[1735312728790,32.70134261,185.53,185.41,33.33333333]
[1735312728791,3.76272454,185.51,185.41,33.33333333]
[1735312728993,178.84377421,185.52,185.41,33.33333333]
[1735312729298,178.84377421,185.52,185.44,2.6993]
[1735312729495,178.84377421,185.52,185.41,89.31333333]
[1735312729692,168.61777421,185.52,185.45,32.70134261]
[1735312729893,7.14014361,185.49,185.41,89.31333333]
[1735312730096,7.14014361,185.49,185.48,2.6988]
[1735312730297,7.14014361,185.52,185.42,5.2]
[1735312730597,2.6985,185.51,185.43,5.2]
[1735312730797,39.84148622,185.52,185.43,5.2]
[1735312730999,3.7459224,185.5,185.43,5.2]
[1735312731295,32.70134261,185.52,185.41,89.31333333]
[1735312731488,32.70134261,185.52,185.44,5.2]
[1735312731693,32.70134261,185.49,185.44,5.2]
[1735312731994,3.73625055,185.48,185.45,5.2]
[1735312732193,32.70134261,185.55,185.45,5.2]
[1735312732394,32.70134261,185.55,185.49,2.6986]
[1735312732698,32.70134261,185.55,185.45,5.2]
[1735312732895,32.70134261,185.58,185.45,5.2]
[1735312733896,35.39874261,185.58,185.45,2.6991]
[1735312734198,32.70134261,185.58,185.46,5.2]
[1735312734396,32.70134261,185.55,185.43,5.2]
[1735312734597,32.70134261,185.55,185.44,2.6993]
[1735312735189,2.6982,185.52,185.43,5.2]
[1735312735498,32.70134261,185.55,185.43,5.2]
[1735312736499,2.6979,185.54,185.43,5.2]
[1735312737005,32.70134261,185.55,185.43,5.2]
[1735312737399,32.70134261,185.52,185.43,5.2]
[1735312737800,2.6984,185.51,185.43,5.2]
[1735312738201,32.70134261,185.49,185.41,89.31333333]
[1735312738401,32.70134261,185.49,185.41,33.33333333]
[1735312738608,32.70134261,185.46,185.41,33.33333333]
[1735312740702,32.70134261,185.43,185.41,33.33333333]
[1735312741202,35.40084261,185.43,185.41,30.77933333]
[1735312741609,32.70134261,185.43,185.41,30.77933333]
[1735312741810,32.70134261,185.43,185.41,18.72331538]
[1735312743910,2.6999,185.4,185.35,5.22]
[1735312744106,32.70134261,185.39,185.31,33.33333333]
[1735312744315,32.70134261,185.42,185.32,5.22]
[1735312745117,32.70134261,185.42,185.33,7.9208]
[1735312745315,32.70134261,185.42,185.33,5.22]
[1735312746116,32.70134261,185.42,185.31,33.33333333]
[1735312746312,32.70134261,185.42,185.34,5.22]
[1735312746818,3.1864,185.48,185.31,33.33333333]
[1735312746819,32.70134261,185.39,185.31,33.33333333]
[1735312747022,32.70134261,185.39,185.31,36.03453333]
[1735312747216,32.70134261,185.39,185.31,33.33333333]
[1735312747620,32.70134261,185.39,185.32,2.701]
[1735312748423,2.7,185.4,185.32,2.701]
[1735312749126,2.7005,185.36,185.31,33.33333333]
[1735312749320,32.70134261,185.39,185.31,33.33333333]
[1735312749528,3.3899,185.38,185.31,33.33333333]
[1735312749727,2.7004,185.37,185.31,33.33333333]
[1735312750122,3.3899,185.38,185.31,33.33333333]
[1735312751329,2.7008,185.34,185.31,33.33333333]
[1735312752227,2.701,185.33,185.31,33.33333333]
[1735312752724,20.15122205,185.36,185.31,33.33333333]
[1735312754019,2.701,185.33,185.31,33.33333333]
[1735312754219,20.15122205,185.36,185.31,33.33333333]
[1735312754429,20.15122205,185.33,185.31,33.33333333]
[1735312754728,2.7011,185.32,185.31,33.33333333]
[1735312755327,2.7011,185.32,185.31,28.22433333]
[1735312755630,2.7011,185.32,185.31,25.66983333]
[1735312757731,2.7008,185.34,185.31,25.66983333]
[1735312758030,3.3899,185.38,185.31,25.66983333]
[1735312758726,2.7011,185.32,185.31,25.66983333]
[1735312758926,20.15122205,185.33,185.21,36.46033333]
[1735312759124,20.15122205,185.28,185.21,36.46033333]
[1735312759329,2.7022,185.25,185.21,36.46033333]
[1735312759626,20.15122205,185.28,185.21,36.46033333]
[1735312759834,2.7025,185.22,185.21,33.33333333]
[1735312760231,2.7023,185.24,185.21,33.33333333]
[1735312760435,20.15122205,185.25,185.21,33.33333333]
[1735312760732,20.15122205,185.28,185.21,33.33333333]
[1735312760928,2.702,185.26,185.21,33.33333333]
[1735312761234,20.15122205,185.31,185.21,33.33333333]
[1735312761528,2.7024,185.23,185.21,33.33333333]
[1735312761832,20.15122205,185.28,185.21,33.33333333]
[1735312762129,2.7025,185.22,185.21,33.33333333]
[1735312765336,2.7023,185.24,185.21,33.33333333]
[1735312765536,20.15122205,185.31,185.21,33.33333333]
[1735312765938,3.67144269,185.3,185.21,33.33333333]
[1735312766445,7.14014361,185.36,185.23,20.15122205]
[1735312766627,7.14014361,185.36,185.28,2.7016]
[1735312766830,7.14014361,185.36,185.29,5.0]
[1735312767029,7.14014361,185.39,185.29,25.15122205]
[1735312767432,7.14014361,185.39,185.32,20.15122205]
[1735312767738,16.31263083,185.4,185.37,2.7003]
[1735312767936,7.18841395,185.49,185.38,5.0]
[1735312768333,2.6989,185.48,185.38,25.15122205]
[1735312768534,7.18841395,185.49,185.41,20.15122205]
[1735312768839,2.698,185.53,185.42,2.6996]
[1735312769035,21.70622205,185.58,185.41,20.15122205]
[1735312770136,34.23979052,185.58,185.41,32.68479052]
[1735312770340,34.23979052,185.58,185.41,35.38449052]
[1735312770341,2.6987,185.49,185.41,35.38449052]
[1735312770542,32.68479052,185.55,185.38,5.0]
[1735312771037,32.68479052,185.55,185.38,7.7002]
[1735312771236,32.68479052,185.55,185.38,5.0]
[1735312771437,2.6998,185.41,185.38,5.0]
[1735312771833,32.68479052,185.49,185.38,5.0]
[1735312772037,32.68479052,185.46,185.38,5.0]
[1735312772334,2.7,185.4,185.38,5.0]
[1735312772540,2.7,185.4,185.33,56.14]
[1735312772541,1.5938,185.45,185.33,61.14]
[1735312772737,1.5938,185.45,185.33,5.0]
[1735312772944,2.7007,185.35,185.33,5.0]
[1735312773246,32.68479052,185.4,185.24,32.68479052]
[1735312773544,32.68479052,185.4,185.25,5.0]
[1735312773545,1.6487,185.39,185.25,5.0]
[1735312774137,2.7011,185.32,185.25,5.0]
[1735312774533,2.7013,185.31,185.25,5.0]
[1735312775840,1.6487,185.39,185.26,5.0]
[1735312776738,2.7016,185.29,185.26,5.0]
[1735312776939,32.68479052,185.37,185.22,1.6765]
[1735312777140,6.6487,185.39,185.22,1.6765]
[1735312777141,32.68479052,185.34,185.22,1.6765]
[1735312777342,1.5626,185.33,185.22,1.6765]
[1735312777540,2.7023,185.24,185.22,1.6765]
[1735312777745,1.5626,185.33,185.22,1.6765]
[1735312778046,2.7014,185.3,185.22,1.6765]
[1735312778245,1.5626,185.33,185.22,1.6765]
[1735312778747,32.68479052,185.37,185.22,1.6765]
[1735312778942,3.2453,185.39,185.22,1.6765]
[1735312779545,2.7014,185.3,185.23,2.7024]
[1735312779748,2.7014,185.3,185.22,1.6765]
[1735312779749,3.2453,185.39,185.22,1.6765]
[1735312779944,3.2453,185.39,185.23,5.0]
[1735312780251,32.68479052,185.35,185.22,1.6765]
[1735312780550,5.0,185.38,185.21,33.33333333]
[1735312780551,32.68479052,185.32,185.21,33.33333333]
[1735312780745,2.7024,185.23,185.21,33.33333333]
[1735312781649,2.7023,185.24,185.21,33.33333333]
[1735312781847,1.5559,185.31,185.21,33.33333333]
[1735312782150,2.7024,185.23,185.21,33.33333333]
[1735312782653,32.68479052,185.35,185.21,33.33333333]
[1735312783246,2.7025,185.23,185.21,33.33333333]
[1735312784150,2.7013,185.31,185.21,33.33333333]
[1735312784447,1.6462,185.37,185.22,37.68479052]
[1735312784855,2.7021,185.25,185.22,37.68479052]
[1735312785158,34.33099052,185.37,185.22,32.68479052]
[1735312785347,34.33099052,185.37,185.23,5.0]
[1735312785548,1.6462,185.37,185.23,6.6253]
[1735312785744,3.2453,185.39,185.25,32.68479052]
[1735312785948,3.2453,185.39,185.25,35.38689052]
[1735312786253,3.2453,185.39,185.26,1.6654]
[1735312786447,2.7011,185.32,185.26,1.6654]
[1735312788146,1.5966,185.39,185.26,1.6654]
[1735312789450,2.7011,185.32,185.26,1.6654]
[1735312790355,2.7011,185.32,185.26,4.3674]
[1735312790547,32.68479052,185.43,185.26,4.3674]
[1735312790751,1.6783,185.42,185.28,32.68479052]
[1735312791453,32.68479052,185.4,185.26,4.94]
[1735312791855,32.68479052,185.4,185.26,6.535]
[1735312792156,2.7015,185.3,185.26,6.535]
[1735312792457,20.15054788,185.39,185.26,4.94]
[1735312792654,2.7022,185.25,185.23,1.6253]
[1735312792850,20.15054788,185.36,185.21,33.33333333]
[1735312793056,3.2644,185.35,185.22,4.94]
[1735312793348,20.15054788,185.33,185.21,33.33333333]
[1735312793755,2.7025,185.22,185.21,33.33333333]
[1735312796760,2.7025,185.22,185.21,30.77923333]
[1735312796958,2.7025,185.22,185.21,28.22543333]
[1735312804066,2.7042,185.11,185.1,34.94883333]
[1735312804668,20.15054788,185.24,185.1,34.94883333]
[1735312805557,2.7029,185.2,185.1,34.94883333]
[1735312805760,20.15054788,185.24,185.1,34.94883333]
[1735312806360,2.7029,185.2,185.1,34.94883333]
[1735312806564,20.15054788,185.24,185.1,34.94883333]
[1735312806864,20.15054788,185.24,185.11,4.94]
[1735312807560,2.7028,185.21,185.11,4.94]
[1735312807766,1.6443,185.25,185.11,4.94]
[1735312807967,20.15054788,185.27,185.11,4.94]
[1735312808464,1.5866,185.29,185.12,20.15054788]
[1735312809256,2.7035,185.16,185.12,20.15054788]
[1735312809461,1.5866,185.29,185.12,20.15054788]
[1735312809968,2.7038,185.14,185.12,20.15054788]
[1735312810163,20.15054788,185.27,185.12,20.15054788]
[1735312811160,1.5866,185.29,185.12,20.15054788]
[1735312811662,3.1888,185.29,185.12,20.15054788]
[1735312811868,3.1888,185.29,185.15,20.15054788]
[1735312812159,1.6022,185.29,185.16,1.68]
[1735312813166,1.6022,185.29,185.18,20.15054788]
[1735312813363,0.19128,185.32,185.19,4.94]
[1735312813866,0.19128,185.32,185.2,1.6881]
[1735312814567,0.19128,185.32,185.21,20.15054788]
[1735312814965,2.7015,185.29,185.23,2.7024]
[1735312815268,0.19128,185.32,185.21,20.15054788]
[1735312815464,0.19128,185.32,185.24,20.15054788]
[1735312815761,0.19128,185.32,185.22,1.6466]
[1735312816863,2.7015,185.29,185.22,1.6466]
[1735312817069,0.19128,185.32,185.22,1.6466]
[1735312817366,2.7023,185.24,185.22,1.6466]
[1735312817567,0.19128,185.32,185.22,1.6466]
[1735312817756,0.19128,185.32,185.23,4.94]
[1735312817961,2.7023,185.24,185.23,4.94]
[1735312818866,20.15054788,185.3,185.2,1.6881]
[1735312819670,2.7027,185.21,185.2,1.6881]
[1735312820567,20.15054788,185.24,185.14,1.6398]
[1735312820767,20.15054788,185.24,185.14,6.4198]
[1735312820964,20.15054788,185.24,185.14,1.6398]
[1735312822574,20.15054788,185.27,185.14,1.6398]
[1735312822769,2.7033,185.18,185.14,1.6398]
[1735312822965,20.15054788,185.3,185.14,1.6398]
[1735312823165,20.15054788,185.3,185.17,2.7031]
[1735312823468,1.5886,185.31,185.16,20.15054788]
[1735312823669,21.73914788,185.31,185.16,22.85384788]
[1735312824375,21.73914788,185.31,185.16,20.15054788]
[1735312824573,21.73914788,185.31,185.14,1.6398]
[1735312824774,20.15054788,185.28,185.14,1.6398]
[1735312825074,20.15054788,185.25,185.14,1.6398]
[1735312825679,20.15054788,185.25,185.15,4.78]
[1735312825879,2.7034,185.16,185.15,4.78]
[1735312826877,2.7036,185.15,185.14,1.6398]
[1735312827177,20.15054788,185.22,185.11,4.78]
[1735312827367,1.5851,185.24,185.11,4.78]
[1735312827874,2.7035,185.16,185.11,4.78]
[1735312828078,41.88339248,185.28,185.11,24.93054788]
[1735312828375,21.7328446,185.28,185.14,20.15054788]
[1735312828575,7.27108638,185.27,185.14,20.15054788]
[1735312828971,108.98992106,185.26,185.16,20.15054788]
[1735312829176,110.15744152,185.26,185.18,20.15054788]
[1735312829478,3.06481912,185.21,185.19,4.78]
[1735312829778,87.31273163,185.23,185.19,4.78]
[1735312829973,0.19128,185.32,185.19,4.78]
[1735312830177,2.7014,185.3,185.24,2.7022]
[1735312830578,3.86986545,185.31,185.22,20.15054788]
[1735312830779,6.57146545,185.29,185.23,2.7024]
[1735312830973,3.86986545,185.28,185.22,20.15054788]
[1735312831174,3.86986545,185.27,185.22,20.15054788]
[1735312831373,3.86986545,185.27,185.19,24.93054788]
[1735312831679,3.86986545,185.26,185.21,2.7027]
[1735312831980,3.86986545,185.25,185.19,24.93054788]
[1735312832279,3.86986545,185.24,185.19,24.93054788]
[1735312832781,3.86986545,185.23,185.19,24.93054788]
[1735312833175,0.19128,185.32,185.19,24.93054788]
[1735312833379,2.7017,185.28,185.22,2.7025]
[1735312833682,3.8782613,185.27,185.22,2.7025]
[1735312833877,3.8782613,185.26,185.2,2.7027]
[1735312834083,2.7022,185.25,185.21,4.78]
[1735312834384,3.8782613,185.24,185.22,4.78]
[1735312834584,3.88106586,185.23,185.22,4.78]
[1735312835283,6.58346586,185.23,185.22,4.78]
[1735312835485,3.88106586,185.23,185.16,4.78]
[1735312835679,2.7034,185.17,185.14,4.78]
[1735312835874,20.15054788,185.26,185.1,20.15054788]
[1735312835875,3.88106586,185.22,185.1,20.15054788]
[1735312836082,3.88106586,185.21,185.13,4.78]
[1735312836284,2.7032,185.18,185.13,4.78]
[1735312836582,1.5963,185.25,185.13,7.4838]
[1735312836977,2.7031,185.19,185.13,7.4838]
[1735312837184,3.87347137,185.18,185.13,24.93054788]
[1735312837382,3.87347137,185.18,185.14,4.78]
[1735312837583,2.7026,185.22,185.17,2.7033]
[1735312837881,3.87631633,185.21,185.14,24.93054788]
[1735312838082,3.87631633,185.2,185.14,24.93054788]
[1735312838284,3.87631633,185.2,185.15,2.7035]
[1735312838579,3.87631633,185.19,185.17,20.15054788]
[1735312838786,3.253,185.28,185.14,24.93054788]
[1735312838979,3.253,185.28,185.19,2.7029]
[1735312839278,3.87747398,185.27,185.14,24.93054788]
[1735312839478,3.87747398,185.27,185.14,4.78]
[1735312839685,3.87747398,185.26,185.15,4.78]
[1735312839879,2.7032,185.18,185.15,4.78]
[1735312840079,3.87747398,185.25,185.13,4.78]
[1735312840285,3.87747398,185.24,185.12,4.78]
[1735312840478,1.6195,185.23,185.12,4.78]
[1735312840683,2.7034,185.16,185.12,4.78]
[1735312841482,1.6195,185.23,185.12,4.78]
[1735312841786,2.7033,185.17,185.12,7.484]
[1735312842488,1.6195,185.23,185.14,2.7036]
[1735312842489,2.703,185.19,185.14,2.7036]
[1735312842788,1.6195,185.23,185.12,4.78]
[1735312843087,3.87838436,185.22,185.12,4.78]
[1735312843486,3.87838436,185.21,185.13,4.78]
[1735312843882,3.87838436,185.2,185.13,4.78]
[1735312844378,6.58138436,185.19,185.13,7.4837]
[1735312844788,3.87838436,185.18,185.13,7.4837]
[1735312845190,2.703,185.19,185.13,7.4837]
[1735312845378,2.703,185.19,185.14,4.78]
[1735312845690,7.27646915,185.26,185.15,2.7036]
[1735312845887,3.88111734,185.25,185.15,2.7036]
[1735312846183,3.88111734,185.24,185.15,2.7036]
[1735312846388,2.703,185.19,185.14,4.78]
[1735312846584,3.88111734,185.23,185.14,4.78]
[1735312846784,3.88111734,185.23,185.14,24.93054788]
[1735312847078,3.88111734,185.22,185.16,2.7034]
[1735312847279,3.88111734,185.21,185.14,24.93054788]
[1735312847483,2.7024,185.23,185.14,24.93054788]
[1735312847689,12.21596915,185.28,185.14,24.93054788]
[1735312847690,3.88060685,185.22,185.14,24.93054788]
[1735312847890,12.21596915,185.28,185.14,24.93054788]
[1735312848087,2.7025,185.23,185.17,2.7032]
[1735312848391,3.87855953,185.22,185.14,24.93054788]
[1735312848786,2.7023,185.24,185.19,2.703]
[1735312848986,4.9395,185.28,185.14,24.93054788]
[1735312849289,3.87888111,185.27,185.14,24.93054788]
[1735312849585,2.7024,185.24,185.18,2.7031]
[1735312849893,3.87888111,185.23,185.19,4.74]
[1735312850188,3.87888111,185.22,185.19,4.74]
[1735312850590,2.7021,185.25,185.2,2.7028]
[1735312850787,7.27646915,185.3,185.19,4.74]
[1735312851090,3.8795805,185.29,185.21,20.15054788]
[1735312851284,3.8795805,185.28,185.21,20.15054788]
[1735312851791,3.8795805,185.27,185.21,20.15054788]
[1735312851991,3.8795805,185.27,185.23,2.7023]
[1735312852191,3.8795805,185.26,185.21,20.15054788]
[1735312852393,3.8795805,185.25,185.21,20.15054788]
[1735312852686,3.8795805,185.24,185.22,4.74]
[1735312853090,0.19319,185.33,185.22,4.74]
[1735312853290,20.15054788,185.31,185.16,20.15054788]
[1735312853488,20.15054788,185.28,185.15,4.74]
[1735312853794,7.1286051,185.27,185.15,4.74]
[1735312854091,3.8767051,185.26,185.15,4.74]
[1735312854287,3.2519,185.27,185.14,4.74]
[1735312854483,2.7032,185.18,185.14,4.74]
[1735312855593,2.7032,185.18,185.15,4.74]
[1735312856795,3.8773828,185.17,185.16,20.15054788]
[1735312857096,7.27646915,185.25,185.16,20.15054788]
[1735312857291,7.27646915,185.25,185.17,2.7033]
[1735312857595,3.87899578,185.24,185.17,2.7033]
[1735312857896,2.7027,185.22,185.15,7.4434]
[1735312858095,2.7027,185.22,185.15,4.74]
[1735312858290,3.87899578,185.21,185.15,4.74]
[1735312858696,3.87899578,185.2,185.16,4.74]
[1735312858899,3.87899578,185.2,185.17,4.74]
[1735312859095,3.2519,185.27,185.17,4.74]
[1735312859397,3.8793301,185.26,185.17,4.74]
[1735312859599,3.8793301,185.25,185.17,4.74]
[1735312859897,3.8793301,185.24,185.17,7.4431]
[1735312860397,3.8793301,185.23,185.17,4.74]
[1735312860596,3.8793301,185.22,185.17,4.74]
[1735312860993,2.7028,185.21,185.17,4.74]
[1735312861198,6.5821301,185.21,185.17,4.74]
[1735312861597,3.8793301,185.2,185.18,4.74]
[1735312861899,10.44746915,185.28,185.18,4.74]
[1735312862097,32.28908784,185.28,185.18,4.74]
[1735312862297,2.7027,185.21,185.18,4.74]
[1735312862499,3.8825026,185.27,185.18,4.74]
[1735312862700,3.8825026,185.26,185.18,4.74]
[1735312862901,3.8825026,185.26,185.2,2.7028]
[1735312863104,10.44746915,185.28,185.2,2.7028]
[1735312863105,3.8825026,185.25,185.2,2.7028]
[1735312863295,3.8825026,185.24,185.2,2.7028]
[1735312863699,3.8825026,185.23,185.2,2.7028]
[1735312864000,3.8825026,185.22,185.2,2.7028]
[1735312864197,6.5851026,185.22,185.18,4.74]
[1735312864401,3.8825026,185.21,185.18,4.74]
[1735312864593,3.8825026,185.21,185.05,44.7963481]
[1735312864795,3.8825026,185.2,185.19,2.703]
[1735312864990,7.27646915,185.31,185.19,4.74]
[1735312865192,7.27646915,185.31,185.27,20.15054788]
[1735312865498,7.27646915,185.31,185.29,2.7014]
[1735312865702,29.11808784,185.32,185.29,2.7014]
[1735312866594,0.19319,185.33,185.28,4.74]
[1735312867096,0.19319,185.33,185.29,2.7014]
[1735312867298,0.19319,185.33,185.28,4.74]
[1735312867696,0.19319,185.33,185.29,4.74]
[1735312867898,2.89419,185.33,185.29,4.74]
[1735312868200,0.19319,185.33,185.29,4.74]
[1735312868404,0.19319,185.33,185.29,7.4415]
[1735312868993,0.19319,185.33,185.29,4.74]
[1735312869203,0.19319,185.33,185.26,4.74]
[1735312869591,2.7015,185.3,185.26,4.74]
[1735312870000,1.645,185.36,185.25,4.74]
[1735312870797,1.645,185.36,185.26,4.74]
[1735312870798,8.92146915,185.36,185.26,4.74]
[1735312871404,2.7016,185.29,185.26,4.74]
[1735312871797,20.15054788,185.34,185.26,4.74]
[1735312871992,3.3224,185.33,185.26,4.74]
[1735312873298,3.3224,185.33,185.22,39.61063482]
[1735312873901,2.7021,185.25,185.22,12.78947829]
[1735312874414,7.27646915,185.32,185.22,12.78947829]
[1735312874807,2.7017,185.29,185.23,2.7023]
[1735312875006,7.27646915,185.32,185.22,32.94002617]
[1735312875410,7.27646915,185.32,185.25,2.7021]
[1735312875605,7.27646915,185.32,185.22,12.78947829]
[1735312875822,3.3224,185.33,185.22,12.78947829]
[1735312876014,20.15054788,185.31,185.22,8.04947829]
[1735312876211,20.15054788,185.31,185.2,7.66589]
[1735312876712,2.7023,185.24,185.2,7.66589]
[1735312876905,2.7023,185.24,185.19,4.74]
[1735312877615,2.7021,185.26,185.19,4.74]
[1735312877811,7.27646915,185.3,185.19,4.74]
[1735312878612,7.27646915,185.3,185.19,24.89054788]
[1735312878912,7.27646915,185.3,185.22,20.15054788]
[1735312879118,7.27646915,185.3,185.25,20.15054788]
[1735312879417,43.87321427,185.32,185.26,4.72]
[1735312879918,43.87321427,185.32,185.31,2.7012]
[1735312880114,7.27646915,185.33,185.27,4.72]
[1735312880511,7.27646915,185.33,185.32,2.7011]
[1735312881012,32.39768784,185.43,185.29,20.15054788]
[1735312881213,2.7001,185.39,185.29,20.15054788]